fUST/lending_fUST_20260101
["ID","MTS","AMOUNT","RATE_DAILY","PERIOD"]
[400214626,1767199846313,-956.2,0.00034246,36]
[400214629,1767199846323,-160.0,0.00034262,8]
[400214631,1767199846331,-350.27397155,0.00034329,60]
[400214634,1767199846340,-200.54705607,0.00034423,30]
[400214637,1767199846350,-160.0,0.00034428,15]
[400214640,1767199846359,-1650.22,0.00034501,60]
[400214642,1767199846369,-350.0,0.00034521,5]
[400214645,1767199846378,-166.0,0.00034521,30]
[400214648,1767199846387,-151.0,0.00034521,31]
[400214651,1767199846397,-2077.549415,0.00034521,31]
[400214653,1767199846407,-2077.549415,0.00034521,31]
[400214656,1767199846417,-2077.549415,0.00034521,31]
[400214658,1767199846426,-151.0,0.00034521,31]
[400214659,1767199846435,-2077.549415,0.00034521,31]
[400214661,1767199846445,-230.54366,0.00034521,31]
[400214663,1767199846455,-230.54366,0.00034521,31]
[400214665,1767199846465,-230.54366,0.00034521,31]
[400214667,1767199846474,-230.54366,0.00034521,31]
[400214668,1767199846483,-151.19,0.00034575,60]
[400214670,1767199846493,-1650.22,0.00034601,60]
[400214671,1767199846503,-151.19,0.00034675,60]
[400214672,1767199846512,-160.6,0.000347,7]
[400214673,1767199846522,-165.71,0.000347,7]
[400214674,1767199846531,-9686.67,0.000347,14]
[400214675,1767199846540,-1650.22,0.00034701,60]
[400214677,1767199846550,-151.19,0.00034775,60]
[400214678,1767199846560,-956.2,0.00034794,37]
[400214680,1767199846570,-1650.22,0.00034801,60]
[400214682,1767199846579,-303.4572356,0.00034849,30]
[400214684,1767199846589,-599.7286954,0.00034849,30]
[400214686,1767199846598,-303.4572356,0.00034849,30]
[400214688,1767199846607,-599.7286954,0.00034849,30]
[400214690,1767199846617,-303.4572356,0.00034849,30]
[400214692,1767199846627,-599.7286954,0.00034849,30]
[400214694,1767199846637,-303.4572356,0.00034849,30]
[400214696,1767199846646,-599.7286954,0.00034849,30]
[400214699,1767199846656,-303.4572356,0.00034849,30]
[400214702,1767199846666,-599.7286954,0.00034849,30]
[400214705,1767199846674,-151.19,0.00034875,60]
[400214708,1767199846684,-192.73524426,0.000349,120]
[400214711,1767199846693,-186.28215455,0.000349,120]
[400214714,1767199846701,-1430.86618739,0.000349,120]
[400214717,1767199846710,-1650.22,0.00034901,60]
[400214718,1767199846719,-160.0,0.00034924,16]
[400214722,1767199846728,-193.3811029,0.00034938,30]
[400214725,1767199846738,-193.3811029,0.00034938,30]
[400214728,1767199846747,-151.21868735,0.00034975,60]
[400214731,1767199846756,-380.5615253,0.00034986,30]
[400214734,1767199846765,-60413.6668245,0.00035,120]
[400214736,1767199846774,-173.85,0.00035,7]
[400214739,1767199846783,-151.0,0.00035,31]
[400214742,1767199846793,-151.0,0.00035,31]
[400214745,1767199846802,-151.0,0.00035,31]
[400214748,1767199846812,-151.0,0.00035,31]
[400214750,1767199846821,-1041.66666667,0.00035,30]
[400214752,1767199846831,-151.0,0.00035001,31]
[400214754,1767199846843,-174.67334,0.00035001,31]
[400214757,1767199846851,-151.0,0.00035001,31]
[400214759,1767199846860,-1650.22,0.00035001,60]
[400214761,1767199846869,-1038.33,0.000351,30]
[400214763,1767199846880,-151.0,0.00035101,31]
[400214765,1767199846890,-1650.22,0.00035101,60]
[400214767,1767199846899,-169.32246815,0.00035123,30]
[400214769,1767199846908,-1650.22,0.00035201,60]
[400214771,1767199846919,-726.0,0.00035236,11]
[400214773,1767199846928,-1046.80414416,0.00035252,120]
[400214775,1767199846938,-5000.0,0.00035287,3]
[400214777,1767199846947,-1650.22,0.00035301,60]
[400214779,1767199846956,-200.54705607,0.00035302,30]
[400214781,1767199846965,-160.0,0.00035309,9]
[400214783,1767199846975,-956.2,0.00035342,38]
[400214785,1767199846985,-450.0,0.00035342,5]
[400214787,1767199846995,-1650.22,0.00035401,60]
[400214789,1767199847005,-160.0,0.00035419,17]
[400214791,1767199847018,-200.0,0.00035454,120]
[400214793,1767199847027,-200.0,0.00035466,120]
[400214795,1767199847036,-1650.22,0.00035501,60]
[400214796,1767199847045,-169.32246815,0.00035507,30]
[400214798,1767199847054,-151.0,0.00035526,30]
[400214800,1767199847062,-1650.22,0.00035601,60]
[400214802,1767199847071,-151.0,0.00035616,31]
[400214804,1767199847080,-599.7286954,0.00035671,30]
[400214806,1767199847089,-599.7286954,0.00035671,30]
[400214808,1767199847098,-599.7286954,0.00035671,30]
[400214810,1767199847108,-599.7286954,0.00035671,30]
[400214812,1767199847117,-397.7732961,0.00035671,30]
[400214814,1767199847125,-726.0,0.0003569,11]
[400214816,1767199847135,-1650.22,0.00035701,60]
[400214818,1767199847144,-726.0,0.00035705,11]
[400214820,1767199847153,-726.0,0.00035719,11]
[400214822,1767199847162,-500.0,0.00035796,14]
[400214824,1767199847171,-1650.22,0.00035801,60]
[400214826,1767199847180,-726.0,0.00035833,11]
[400214828,1767199847190,-726.0,0.00035856,11]
[400214830,1767199847199,-200.0,0.00035859,120]
[400214831,1767199847208,-169.32246815,0.00035863,30]
[400214833,1767199847218,-956.2,0.0003589,39]
[400214835,1767199847229,-3877.62234439,0.000359,15]
[400214837,1767199847238,-1430.86618739,0.000359,120]
[400214839,1767199847247,-1650.22,0.00035901,60]
[400214841,1767199847256,-600.0,0.00035906,2]
[400214843,1767199847265,-160.0,0.00035915,18]
[400214845,1767199847274,-726.0,0.00035938,11]
[400214847,1767199847283,-200.0,0.00035942,120]
[400214849,1767199847293,-983.84977836,0.00035945,2]
[400214850,1767199847301,-200.0,0.00035988,120]
[400214852,1767199847310,-166.0,0.00036,30]
[400214854,1767199847320,-167.0,0.00036,30]
[400214856,1767199847329,-1650.22,0.00036001,60]
[400214858,1767199847339,-983.84977836,0.00036045,2]
[400214860,1767199847348,-200.0,0.00036083,120]
[400214862,1767199847358,-1650.22,0.00036101,60]
[400214864,1767199847367,-983.84977836,0.00036145,2]
[400214866,1767199847376,-651.10848757,0.00036164,5]
[400214868,1767199847385,-200.0,0.00036171,120]
[400214870,1767199847395,-1364.0,0.00036179,2]
[400214872,1767199847404,-2156.0,0.00036179,2]
[400214874,1767199847413,-627.0,0.00036179,2]
[400214876,1767199847422,-200.54705607,0.0003618,30]
[400214878,1767199847431,-1650.22,0.00036201,60]
[400214880,1767199847440,-983.84977836,0.00036245,2]
[400214893,1767199847545,-169.32246815,0.00036247,30]
[400214895,1767199847567,-200.0,0.0003625,120]
[400214897,1767199847578,-600.0,0.0003628,2]
[400214899,1767199847587,-6369.13269035,0.0003628,2]
[400214901,1767199847596,-726.0,0.00036288,11]
[400214903,1767199847606,-202.21692804,0.0003629,8]
[400214905,1767199847615,-202.21692799,0.0003629,8]
[400214907,1767199847625,-202.21692799,0.0003629,8]
[400214909,1767199847634,-202.21692799,0.0003629,8]
[400214911,1767199847644,-202.21692799,0.0003629,8]
[400214913,1767199847653,-202.21692799,0.0003629,8]
[400214915,1767199847663,-202.21692799,0.0003629,8]
[400214917,1767199847672,-202.21692799,0.0003629,8]
[400214918,1767199847681,-202.21692799,0.0003629,8]
[400214920,1767199847690,-202.21692799,0.0003629,8]
[400214922,1767199847701,-202.21692799,0.0003629,8]
[400214924,1767199847711,-202.21692799,0.0003629,8]
[400214926,1767199847721,-202.21692799,0.0003629,8]
[400214928,1767199847731,-9686.67,0.000363,14]
[400214930,1767199847741,-1500.625286,0.000363,24]
[400214932,1767199847750,-1650.22,0.00036301,60]
[400214934,1767199847760,-160.0,0.00036302,11]
[400214936,1767199847770,-983.84977836,0.00036345,2]
[400214938,1767199847779,-160.0,0.00036356,10]
[400214940,1767199847788,-874.0,0.00036359,11]
[400214942,1767199847798,-200.0,0.00036366,120]
[400214944,1767199847807,-195.765928,0.00036401,31]
[400214946,1767199847817,-151.0,0.00036401,31]
[400214948,1767199847826,-151.0,0.00036401,31]
[400214950,1767199847837,-1650.22,0.00036401,60]
[400214952,1767199847847,-160.0,0.00036411,19]
[400214954,1767199847856,-956.2,0.00036438,40]
[400214956,1767199847866,-500.0,0.0003644,30]
[400214958,1767199847875,-500.0,0.0003644,30]
[400214959,1767199847886,-500.0,0.0003644,30]
[400214962,1767199847896,-500.0,0.0003644,30]
[400214963,1767199847905,-500.0,0.0003644,30]
[400214966,1767199847916,-603.09510429,0.0003644,30]
[400214967,1767199847926,-500.0,0.0003644,30]
[400214969,1767199847935,-983.84977836,0.00036445,2]
[400214971,1767199847944,-200.0,0.00036458,120]
[400214974,1767199847955,-598.4651806,0.00036459,2]
[400214975,1767199847964,-500.0,0.0003646,30]
[400214977,1767199847973,-500.0,0.0003646,30]
[400214979,1767199847983,-500.0,0.0003646,30]
[400214981,1767199847992,-500.0,0.0003646,30]
[400214983,1767199848002,-500.0,0.0003646,30]
[400214985,1767199848011,-500.0,0.0003646,30]
[400214987,1767199848020,-500.0,0.0003646,30]
[400214989,1767199848029,-500.0,0.0003646,30]
[400214991,1767199848038,-500.0,0.0003646,30]
[400214993,1767199848047,-500.0,0.0003646,30]
[400214995,1767199848056,-500.0,0.0003646,30]
[400214997,1767199848066,-500.0,0.0003646,30]
[400214999,1767199848075,-5000.0,0.000365,40]
[400215001,1767199848085,-155.15468496,0.000365,120]
[400215003,1767199848095,-151.0,0.000365,31]
[400215005,1767199848106,-151.0,0.000365,31]
[400215007,1767199848115,-151.0,0.000365,31]
[400215009,1767199848125,-514.72487,0.000365,31]
[400215011,1767199848134,-514.72487,0.000365,31]
[400215013,1767199848144,-151.0,0.000365,31]
[400215015,1767199848154,-514.72487,0.000365,31]
[400215017,1767199848164,-151.0,0.000365,31]
[400215018,1767199848173,-514.72487,0.000365,31]
[400215020,1767199848183,-1650.22,0.00036501,60]
[400215022,1767199848192,-726.0,0.00036594,11]
[400215024,1767199848202,-726.0,0.00036594,11]
[400215026,1767199848212,-380491.85,0.00036601,5]
[400215028,1767199848222,-7073.29,0.00036601,5]
[400215030,1767199848231,-1650.22,0.00036601,60]
[400215032,1767199848241,-169.32246815,0.00036603,30]
[400215034,1767199848250,-200.0,0.00036623,120]
[400215036,1767199848260,-726.0,0.00036629,11]
[400215038,1767199848269,-600.0,0.00036654,2]
[400215040,1767199848279,-200.0,0.00036662,120]
[400215042,1767199848288,-5000.0,0.0003669,59]
[400215043,1767199848297,-5000.0,0.0003669,56]
[400215046,1767199848308,-5000.0,0.0003669,56]
[400215048,1767199848317,-178.917895,0.0003669,31]
[400215049,1767199848327,-151.0,0.0003669,31]
[400215051,1767199848336,-1650.22,0.00036701,60]
[400215053,1767199848345,-1357.36960251,0.00036716,7]
[400215055,1767199848354,-152.24102269,0.00036752,7]
[400215057,1767199848363,-191.579,0.00036758,46]
[400215059,1767199848372,-726.0,0.00036793,11]
[400215061,1767199848382,-1500.0,0.000368,24]
[400215063,1767199848391,-1650.22,0.00036801,60]
[400215065,1767199848400,-516.77672992,0.00036834,13]
[400215067,1767199848410,-800.0,0.00036875,7]
[400215069,1767199848419,-1650.22,0.00036901,60]
[400215071,1767199848429,-160.0,0.00036907,20]
[400215073,1767199848437,-800.0,0.00036962,7]
[400215075,1767199848447,-726.0,0.0003697,11]
[400215077,1767199848457,-956.2,0.00036986,41]
[400215079,1767199848466,-169.32246815,0.00036986,30]
[400215081,1767199848476,-14586.0,0.00037,5]
[400215083,1767199848484,-1038.33,0.00037,30]
[400215085,1767199848494,-1430.86618739,0.00037,120]
[400215086,1767199848503,-173.85,0.00037,7]
[400215088,1767199848512,-1650.22,0.00037001,60]
[400215090,1767199848521,-151.0,0.00037016,31]
[400215092,1767199848531,-151.0,0.00037016,31]
[400215094,1767199848540,-151.0,0.00037016,31]
[400215096,1767199848552,-151.0,0.00037016,31]
[400215098,1767199848562,-151.0,0.00037016,31]
[400215100,1767199848571,-151.0,0.00037016,31]
[400215102,1767199848582,-600.0,0.00037028,2]
[400215104,1767199848591,-200.0,0.00037048,120]
[400215105,1767199848600,-200.54705607,0.00037058,30]
[400215106,1767199848609,-62351.6,0.00037091,17]
[400215107,1767199848618,-800.0,0.00037094,7]
[400215108,1767199848627,-151.0,0.00037101,31]
[400215109,1767199848637,-151.0,0.00037101,31]
[400215110,1767199848646,-151.0,0.00037101,31]
[400215111,1767199848656,-1650.22,0.00037101,60]
[400215112,1767199848665,-200.0,0.00037112,120]
[400215113,1767199848674,-800.0,0.00037113,7]
[400215114,1767199848683,-151.0,0.00037126,31]
[400215115,1767199848692,-151.0,0.00037126,31]
[400215116,1767199848701,-151.0,0.00037126,31]
[400215117,1767199848711,-151.0,0.00037126,31]
[400215118,1767199848720,-151.0,0.00037126,31]
[400215119,1767199848730,-151.0,0.00037126,31]
[400215120,1767199848739,-179.7943848,0.00037182,30]
[400215121,1767199848749,-153.0,0.00037182,30]
[400215122,1767199848758,-153.0,0.00037182,30]
[400215123,1767199848767,-153.0,0.00037182,30]
[400215125,1767199848776,-153.0,0.00037182,30]
[400215127,1767199848785,-153.0,0.00037182,30]
[400215128,1767199848794,-153.0,0.00037182,30]
[400215130,1767199848804,-153.0,0.00037182,30]
[400215132,1767199848814,-153.0,0.00037182,30]
[400215134,1767199848823,-151.0,0.0003719,31]
[400215136,1767199848833,-151.0,0.0003719,31]
[400215138,1767199848846,-151.0,0.0003719,31]
[400215140,1767199848855,-151.0,0.0003719,31]
[400215142,1767199848864,-176.629156,0.0003719,31]
[400215144,1767199848874,-151.0,0.0003719,31]
[400215146,1767199848883,-151.0,0.0003719,31]
[400215148,1767199848892,-151.0,0.0003719,31]
[400215150,1767199848901,-151.0,0.0003719,31]
[400215152,1767199848911,-151.0,0.0003719,31]
[400215154,1767199848920,-212.349887,0.0003719,31]
[400215156,1767199848930,-212.349887,0.0003719,31]
[400215158,1767199848939,-151.0,0.0003719,31]
[400215159,1767199848948,-212.349887,0.0003719,31]
[400215161,1767199848958,-151.0,0.0003719,31]
[400215163,1767199848967,-212.349887,0.0003719,31]
[400215165,1767199848976,-151.0,0.0003719,31]
[400215167,1767199848985,-151.0,0.0003719,31]
[400215169,1767199848994,-151.0,0.0003719,31]
[400215171,1767199849003,-151.0,0.0003719,31]
[400215173,1767199849012,-151.0,0.0003719,31]
[400215175,1767199849021,-151.0,0.0003719,31]
[400215177,1767199849031,-151.0,0.0003719,31]
[400215179,1767199849040,-151.0,0.0003719,31]
[400215181,1767199849049,-175.816508,0.0003719,31]
[400215183,1767199849059,-151.0,0.0003719,31]
[400215185,1767199849068,-151.0,0.0003719,31]
[400215187,1767199849077,-151.0,0.0003719,31]
[400215189,1767199849086,-287.705272,0.0003719,31]
[400215191,1767199849095,-293375.93175396,0.00037191,7]
[400215193,1767199849105,-724.901795,0.00037191,31]
[400215195,1767199849114,-724.901795,0.00037191,31]
[400215197,1767199849123,-151.0,0.00037191,31]
[400215199,1767199849132,-724.901795,0.00037191,31]
[400215200,1767199849141,-724.901795,0.00037191,31]
[400215202,1767199849151,-151.0,0.00037191,31]
[400215204,1767199849160,-151.0,0.00037191,31]
[400215206,1767199849169,-151.0,0.00037191,7]
[400215208,1767199849179,-151.0,0.00037191,28]
[400215210,1767199849188,-151.0,0.00037191,31]
[400215212,1767199849197,-151.0,0.00037191,31]
[400215214,1767199849207,-151.0,0.00037191,31]
[400215216,1767199849216,-297.109657,0.00037191,31]
[400215218,1767199849225,-1650.22,0.00037201,60]
[400215219,1767199849235,-200.0,0.00037205,120]
[400215221,1767199849244,-374.1454926,0.00037211,2]
[400215223,1767199849254,-250.0,0.00037212,30]
[400215225,1767199849263,-478.75725327,0.00037212,30]
[400215227,1767199849273,-500.0,0.00037212,30]
[400215229,1767199849283,-151.0,0.00037216,31]
[400215231,1767199849292,-151.0,0.00037216,31]
[400215233,1767199849302,-151.0,0.00037216,31]
[400215235,1767199849311,-151.0,0.00037216,31]
[400215237,1767199849320,-230.327504,0.00037216,31]
[400215239,1767199849329,-151.0,0.00037216,31]
[400215241,1767199849338,-250.0,0.00037222,31]
[400215243,1767199849348,-461.67526834,0.00037222,31]
[400215245,1767199849356,-500.0,0.00037222,31]
[400215247,1767199849366,-952.18537423,0.00037222,31]
[400215248,1767199849375,-1106.43222832,0.00037252,120]
[400215250,1767199849384,-800.0,0.00037275,7]
[400215252,1767199849393,-1053.225924,0.0003728,11]
[400215254,1767199849403,-202.21692799,0.00037291,9]
[400215256,1767199849411,-5000.0,0.000373,50]
[400215258,1767199849422,-150.0,0.000373,2]
[400215260,1767199849432,-150.0,0.000373,11]
[400215262,1767199849440,-1000.0,0.000373,11]
[400215264,1767199849450,-151.0,0.000373,31]
[400215266,1767199849460,-2077.549415,0.000373,31]
[400215268,1767199849469,-2077.549415,0.000373,31]
[400215270,1767199849477,-2077.549415,0.000373,31]
[400215272,1767199849486,-151.0,0.000373,31]
[400215274,1767199849496,-2077.549415,0.000373,31]
[400215276,1767199849506,-230.54366,0.000373,31]
[400215278,1767199849515,-230.54366,0.000373,31]
[400215280,1767199849525,-230.54366,0.000373,31]
[400215282,1767199849534,-230.54366,0.000373,31]
[400215284,1767199849544,-1500.0,0.000373,24]
[400215285,1767199849554,-1650.22,0.00037301,60]
[400215287,1767199849564,-500.0,0.00037312,31]
[400215289,1767199849573,-250.0,0.00037312,31]
[400215291,1767199849583,-151.0,0.00037312,31]
[400215293,1767199849592,-445.202766,0.00037312,31]
[400215295,1767199849601,-174.61919142,0.00037312,31]
[400215297,1767199849610,-250.0,0.00037312,31]
[400215299,1767199849619,-500.0,0.00037312,31]
[400215301,1767199849629,-250.0,0.00037312,31]
[400215303,1767199849638,-151.0,0.00037312,31]
[400215304,1767199849647,-151.0,0.00037312,31]
[400215306,1767199849656,-2150.738,0.00037312,31]
[400215308,1767199849666,-151.0,0.00037312,31]
[400215310,1767199849675,-506.03858688,0.00037312,31]
[400215312,1767199849685,-151.0,0.00037326,31]
[400215314,1767199849694,-151.0,0.00037326,31]
[400215316,1767199849703,-151.0,0.00037326,31]
[400215318,1767199849713,-151.0,0.00037326,31]
[400215320,1767199849723,-151.0,0.00037326,31]
[400215322,1767199849733,-151.0,0.00037326,31]
[400215324,1767199849742,-151.0,0.00037326,31]
[400215326,1767199849753,-151.0,0.00037326,31]
[400215328,1767199849762,-151.0,0.00037326,31]
[400215330,1767199849770,-151.0,0.00037326,31]
[400215332,1767199849780,-151.0,0.00037326,31]
[400215333,1767199849788,-151.0,0.00037326,31]
[400215335,1767199849797,-151.0,0.00037326,31]
[400215337,1767199849806,-151.0,0.00037326,31]
[400215339,1767199849815,-159.852465,0.00037326,31]
[400215341,1767199849824,-151.0,0.00037326,31]
[400215343,1767199849834,-151.0,0.00037326,31]
[400215345,1767199849845,-151.0,0.00037326,31]
[400215347,1767199849854,-151.0,0.00037326,31]
[400215349,1767199849864,-151.0,0.00037326,31]
[400215351,1767199849874,-151.0,0.00037326,31]
[400215353,1767199849883,-151.0,0.00037326,31]
[400215355,1767199849893,-151.0,0.00037326,31]
[400215357,1767199849902,-151.0,0.00037326,31]
[400215359,1767199849912,-249.08345827,0.00037326,31]
[400215360,1767199849921,-364.920927,0.00037326,31]
[400215362,1767199849929,-174.67334,0.00037326,31]
[400215364,1767199849939,-174.67334,0.00037326,31]
[400215366,1767199849948,-174.67334,0.00037326,31]
[400215368,1767199849958,-174.67334,0.00037326,31]
[400215370,1767199849967,-174.673344,0.00037326,31]
[400215372,1767199849976,-151.0,0.00037326,31]
[400215373,1767199849985,-151.0,0.00037326,31]
[400215374,1767199849995,-151.0,0.00037326,31]
[400215375,1767199850005,-151.0,0.00037326,31]
[400215376,1767199850015,-151.0,0.00037326,31]
[400215377,1767199850024,-151.0,0.00037326,31]
[400215378,1767199850033,-151.0,0.00037326,31]
[400215379,1767199850042,-151.0,0.00037326,31]
[400215380,1767199850051,-183.307303,0.00037326,31]
[400215381,1767199850060,-151.0,0.00037326,31]
[400215382,1767199850069,-151.0,0.00037326,31]
[400215383,1767199850078,-156.330499,0.00037326,31]
[400215384,1767199850185,-151.0,0.00037326,31]
[400215385,1767199850194,-151.0,0.00037326,31]
[400215386,1767199850203,-151.0,0.00037326,31]
[400215387,1767199850212,-151.0,0.00037337,31]
[400215388,1767199850222,-500.0,0.00037337,31]
[400215389,1767199850231,-250.0,0.00037337,31]
[400215390,1767199850242,-151.0,0.00037337,31]
[400215391,1767199850252,-269.10924679,0.00037337,31]
[400215392,1767199850261,-429.318,0.00037337,31]
[400215393,1767199850271,-156.587,0.00037337,31]
[400215394,1767199850280,-250.0,0.00037337,31]
[400215395,1767199850289,-500.0,0.00037337,31]
[400215396,1767199850298,-250.0,0.00037337,31]
[400215397,1767199850307,-151.0,0.00037337,31]
[400215398,1767199850316,-151.0,0.00037337,31]
[400215399,1767199850325,-151.0,0.00037337,31]
[400215400,1767199850335,-2074.0,0.00037337,31]
[400215401,1767199850345,-151.0,0.00037337,31]
[400215402,1767199850355,-500.0,0.00037337,31]
[400215403,1767199850364,-151.0,0.00037337,31]
[400215404,1767199850374,-160.61899658,0.00037337,31]
[400215405,1767199850383,-1226.0,0.00037378,30]
[400215406,1767199850392,-19069.0,0.00037378,30]
[400215407,1767199850401,-221.765393,0.0003739,31]
[400215408,1767199850412,-151.0,0.0003739,31]
[400215409,1767199850421,-151.0,0.0003739,31]
[400215410,1767199850430,-151.0,0.0003739,31]
[400215411,1767199850440,-151.0,0.0003739,31]
[400215412,1767199850449,-151.0,0.0003739,31]
[400215413,1767199850459,-151.0,0.0003739,31]
[400215414,1767199850469,-151.0,0.0003739,31]
[400215415,1767199850479,-228.788112,0.0003739,31]
[400215416,1767199850488,-151.0,0.0003739,31]
[400215417,1767199850497,-151.0,0.0003739,31]
[400215418,1767199850506,-151.0,0.0003739,31]
[400215419,1767199850515,-203.84118,0.0003739,31]
[400215420,1767199850525,-212.349887,0.0003739,31]
[400215421,1767199850535,-212.349887,0.0003739,31]
[400215422,1767199850545,-212.349887,0.0003739,31]
[400215423,1767199850554,-212.349887,0.0003739,31]
[400215424,1767199850565,-212.349887,0.0003739,31]
[400215425,1767199850574,-212.349887,0.0003739,31]
[400215426,1767199850584,-151.0,0.0003739,31]
[400215427,1767199850593,-151.0,0.0003739,31]
[400215428,1767199850602,-212.349887,0.0003739,31]
[400215429,1767199850612,-151.0,0.0003739,31]
[400215430,1767199850621,-212.349887,0.0003739,31]
[400215431,1767199850631,-212.349887,0.0003739,31]
[400215432,1767199850641,-151.0,0.0003739,31]
[400215433,1767199850650,-151.0,0.0003739,31]
[400215434,1767199850659,-212.349887,0.0003739,31]
[400215435,1767199850668,-151.0,0.0003739,31]
[400215436,1767199850677,-212.349887,0.0003739,31]
[400215437,1767199850686,-212.349895,0.0003739,31]
[400215438,1767199850695,-151.0,0.0003739,31]
[400215439,1767199850704,-151.0,0.0003739,31]
[400215440,1767199850713,-203.863584,0.0003739,31]
[400215441,1767199850722,-151.0,0.0003739,31]
[400215442,1767199850732,-151.0,0.0003739,31]
[400215443,1767199850741,-151.0,0.0003739,31]
[400215444,1767199850751,-151.0,0.0003739,31]
[400215445,1767199850760,-151.0,0.0003739,31]
[400215446,1767199850770,-299.90264,0.0003739,31]
[400215447,1767199850779,-151.0,0.0003739,31]
[400215448,1767199850789,-151.0,0.0003739,31]
[400215449,1767199850798,-238.787696,0.0003739,31]
[400215450,1767199850807,-151.0,0.0003739,31]
[400215451,1767199850817,-151.0,0.0003739,31]
[400215452,1767199850826,-151.0,0.0003739,31]
[400215453,1767199850836,-151.0,0.0003739,31]
[400215454,1767199850850,-151.0,0.0003739,31]
[400215455,1767199850859,-151.0,0.0003739,31]
[400215456,1767199850870,-151.0,0.0003739,31]
[400215457,1767199850880,-151.0,0.0003739,31]
[400215458,1767199850891,-151.0,0.0003739,31]
[400215459,1767199850900,-151.0,0.0003739,31]
[400215460,1767199850910,-151.0,0.0003739,31]
[400215461,1767199850920,-173.182204,0.0003739,31]
[400215462,1767199850929,-151.0,0.0003739,31]
[400215463,1767199850939,-151.0,0.0003739,31]
[400215464,1767199850948,-151.0,0.0003739,31]
[400215465,1767199850959,-151.0,0.0003739,31]
[400215466,1767199850968,-300.511634,0.0003739,31]
[400215467,1767199850978,-151.0,0.0003739,31]
[400215468,1767199850988,-151.0,0.0003739,31]
[400215469,1767199850997,-151.0,0.0003739,31]
[400215470,1767199851008,-1088606.01841926,0.00037391,20]
[400215471,1767199851086,-25323.83183242,0.00037391,20]
[400215472,1767199851097,-537.43109956,0.00037391,20]
[400215473,1767199851177,-1323.99,0.00023287,2]
[400215474,1767199851186,-1323.99,0.00023561,2]
[400215475,1767199851195,-652.02,0.00023835,2]
[400215476,1767199851416,-542.72,0.00022124,10]
[400215477,1767199851426,-3334.98135392,0.000227,2]
[400215478,1767199851435,-671.97,0.00023835,2]
[400215479,1767199851445,-1323.99,0.00024109,2]
[400215480,1767199851454,-1323.99,0.00024383,2]
[400215481,1767199851463,-1323.99,0.00024657,2]
[400215482,1767199851472,-1323.99,0.00024931,2]
[400215483,1767199851482,-1323.99,0.00025205,2]
[400215484,1767199851491,-1323.99,0.00025479,2]
[400215485,1767199851501,-1323.99,0.00025753,2]
[400215486,1767199851511,-1323.99,0.00026027,2]
[400215487,1767199851520,-1323.99,0.00026301,2]
[400215488,1767199851529,-1323.99,0.00026575,2]
[400215489,1767199851539,-1323.99,0.00026849,2]
[400215490,1767199851549,-1323.99,0.00027123,2]
[400215491,1767199851558,-1323.99,0.00027397,2]
[400215492,1767199851567,-346.674875,0.00027654,7]
[400215493,1767199851577,-151.0,0.00027654,7]
[400215494,1767199851587,-346.674875,0.00027654,7]